[Event "*** Titled Tuesday Blitz"]
[Site "Chess.com"]
[Date "2021.02.09"]
[Round "6"]
[White "NikolaMa2000"]
[Black "KubaGepard"]
[Result "0-1"]
[WhiteElo "1858"]
[BlackElo "2358"]
[TimeControl "180+1"]
[EndTime "11:07:22 PST"]
[Termination "KubaGepard won by resignation"]

1. d4 {[%clk 0:03:00.9]} 1... d5 {[%clk 0:02:59.4]} 2. c4 {[%clk 0:03:00.3]}
2... dxc4 {[%clk 0:02:56.8]} 3. Qa4+ {[%clk 0:02:56.7]} 3... Nc6 {[%clk
0:02:55.2]} 4. e3 {[%clk 0:02:51.5]} 4... Nf6 {[%clk 0:02:53.6]} 5. Nf3 {[%clk
0:02:48.8]} 5... Bg4 {[%clk 0:02:47.9]} 6. Be2 {[%clk 0:02:45.8]} 6... Nd5
{[%clk 0:02:37.3]} 7. Qxc4 {[%clk 0:02:30.4]} 7... e5 {[%clk 0:02:28.8]} 8. Nxe5
{[%clk 0:02:19.5]} 8... Bxe2 {[%clk 0:02:22.3]} 9. Qxe2 {[%clk 0:02:07.3]} 9...
Nxe5 {[%clk 0:02:16.9]} 10. dxe5 {[%clk 0:02:07]} 10... Bb4+ {[%clk 0:02:15.7]}
11. Bd2 {[%clk 0:02:04.4]} 11... O-O {[%clk 0:02:12.7]} 12. O-O {[%clk
0:02:00.7]} 12... Re8 {[%clk 0:02:09.8]} 13. f4 {[%clk 0:01:56.6]} 13... c5
{[%clk 0:01:57.6]} 14. Nc3 {[%clk 0:01:49.5]} 14... Bxc3 {[%clk 0:01:52.5]} 15.
Bxc3 {[%clk 0:01:48]} 15... Nxc3 {[%clk 0:01:50.7]} 16. bxc3 {[%clk 0:01:47.4]}
16... Qa5 {[%clk 0:01:50.7]} 17. Qc4 {[%clk 0:01:42.3]} 17... b5 {[%clk
0:01:46.1]} 18. Qb3 {[%clk 0:01:36.9]} 18... c4 {[%clk 0:01:35.9]} 19. Qc2
{[%clk 0:01:29.9]} 19... Qb6 {[%clk 0:01:30.5]} 20. Rf3 {[%clk 0:01:29]} 20...
Rad8 {[%clk 0:01:28.5]} 21. a4 {[%clk 0:01:26.4]} 21... Rd3 {[%clk 0:01:27.8]}
22. Kf2 {[%clk 0:01:22.8]} 22... Red8 {[%clk 0:01:27]} 23. Qc1 {[%clk
0:00:53.6]} 23... b4 {[%clk 0:01:22.2]} 24. cxb4 {[%clk 0:00:52.3]} 24... Qxb4
{[%clk 0:01:18.7]} 25. Kg3 {[%clk 0:00:43.6]} 25... c3 {[%clk 0:01:16]} 26. Qa3
{[%clk 0:00:34.7]} 26... Qxa3 {[%clk 0:01:12.8]} 27. Rxa3 {[%clk 0:00:34.9]}
27... c2 {[%clk 0:01:13.2]} 28. Ra1 {[%clk 0:00:31.5]} 28... Rd1 {[%clk
0:01:12.8]} 29. Rf1 {[%clk 0:00:17.7]} 29... Rxa1 {[%clk 0:01:10.9]} 30. Rxa1
{[%clk 0:00:16.9]} 30... Rd1 {[%clk 0:01:11.4]} 31. Rb1 {[%clk 0:00:04.5]} 31...
cxb1=Q {[%clk 0:01:10.5]} 0-1

[Event "*** Titled Tuesday Blitz"]
[Site "Chess.com"]
[Date "2021.02.09"]
[Round "6"]
[White "GadimbayliA"]
[Black "SilviusTiberius"]
[Result "1-0"]
[WhiteElo "2845"]
[BlackElo "2504"]
[TimeControl "180+1"]
[EndTime "11:07:28 PST"]
[Termination "GadimbayliA won by resignation"]

1. e4 {[%clk 0:03:00.9]} 1... e5 {[%clk 0:02:55.8]} 2. Nf3 {[%clk 0:03:00.5]}
2... Nc6 {[%clk 0:02:55.2]} 3. Nc3 {[%clk 0:03:00.9]} 3... Nf6 {[%clk
0:02:54.6]} 4. d4 {[%clk 0:03:01.4]} 4... exd4 {[%clk 0:02:55.1]} 5. Nxd4 {[%clk
0:03:02]} 5... Bb4 {[%clk 0:02:55.7]} 6. Nxc6 {[%clk 0:03:02.3]} 6... bxc6
{[%clk 0:02:56.4]} 7. Bd3 {[%clk 0:03:02.9]} 7... d5 {[%clk 0:02:57.1]} 8. exd5
{[%clk 0:03:03.8]} 8... O-O {[%clk 0:02:57.6]} 9. O-O {[%clk 0:03:03.6]} 9...
cxd5 {[%clk 0:02:58.1]} 10. Bg5 {[%clk 0:03:03.2]} 10... c6 {[%clk 0:02:57.3]}
11. Qf3 {[%clk 0:03:03.5]} 11... h6 {[%clk 0:02:54.7]} 12. Bxf6 {[%clk
0:03:03.6]} 12... Qxf6 {[%clk 0:02:55.3]} 13. Qxf6 {[%clk 0:03:04.2]} 13... gxf6
{[%clk 0:02:56.2]} 14. Ne2 {[%clk 0:03:04.9]} 14... Rb8 {[%clk 0:02:55.4]} 15.
Ng3 {[%clk 0:02:56.2]} 15... Bd6 {[%clk 0:02:46.7]} 16. b3 {[%clk 0:02:55.6]}
16... Be5 {[%clk 0:02:46.6]} 17. Rad1 {[%clk 0:02:54]} 17... Re8 {[%clk
0:02:41.4]} 18. Nf5 {[%clk 0:02:52]} 18... Bxf5 {[%clk 0:02:40.1]} 19. Bxf5
{[%clk 0:02:52.9]} 19... Re7 {[%clk 0:02:32]} 20. g3 {[%clk 0:02:51.5]} 20...
Bc3 {[%clk 0:02:31.4]} 21. Kg2 {[%clk 0:02:45.4]} 21... a5 {[%clk 0:02:31.2]}
22. Rd3 {[%clk 0:02:42.2]} 22... d4 {[%clk 0:02:29.4]} 23. Rf3 {[%clk
0:02:36.2]} 23... c5 {[%clk 0:02:29]} 24. Bd3 {[%clk 0:02:35.9]} 24... Rb6
{[%clk 0:02:29.4]} 25. Bc4 {[%clk 0:02:33.7]} 25... Kf8 {[%clk 0:02:26.2]} 26.
Rf5 {[%clk 0:02:33]} 26... Re5 {[%clk 0:02:25.5]} 27. Rf3 {[%clk 0:02:31.1]}
27... Ke7 {[%clk 0:02:19.2]} 28. Rd1 {[%clk 0:02:31]} 28... Rb8 {[%clk
0:02:17.4]} 29. Rf4 {[%clk 0:02:18.5]} 29... Rb6 {[%clk 0:02:00.3]} 30. Rd3
{[%clk 0:02:17.4]} 30... f5 {[%clk 0:01:56.3]} 31. Rdf3 {[%clk 0:02:16.1]} 31...
Rf6 {[%clk 0:01:56]} 32. Bd3 {[%clk 0:02:11.7]} 32... Bd2 {[%clk 0:01:55.4]} 33.
Rxf5 {[%clk 0:02:07.5]} 33... Rfxf5 {[%clk 0:01:55.5]} 34. Bxf5 {[%clk
0:01:46.6]} 34... f6 {[%clk 0:01:42.7]} 35. Bd3 {[%clk 0:01:46.4]} 35... Bc1
{[%clk 0:01:39.8]} 36. Rf5 {[%clk 0:01:36.9]} 36... Rxf5 {[%clk 0:01:39]} 37.
Bxf5 {[%clk 0:01:37.8]} 37... Kd6 {[%clk 0:01:39.6]} 38. f4 {[%clk 0:01:38.3]}
38... Kd5 {[%clk 0:01:28.7]} 39. Kf3 {[%clk 0:01:36]} 39... c4 {[%clk
0:01:25.7]} 40. Kg4 {[%clk 0:01:04.1]} 40... Be3 {[%clk 0:01:25.2]} 41. Kh5
{[%clk 0:01:02.8]} 41... Bg1 {[%clk 0:01:25.7]} 42. h4 {[%clk 0:01:02.2]} 42...
Bh2 {[%clk 0:01:24.3]} 43. Kxh6 {[%clk 0:01:01.5]} 43... Bxg3 {[%clk 0:01:24.2]}
44. h5 {[%clk 0:01:01.8]} 44... Bxf4+ {[%clk 0:01:21.9]} 45. Kg6 {[%clk
0:01:00.3]} 45... cxb3 {[%clk 0:01:19.7]} 46. axb3 {[%clk 0:00:59.5]} 46... Ke5
{[%clk 0:01:12.9]} 47. Bd3 {[%clk 0:00:58.6]} 47... Bc1 {[%clk 0:01:01.8]} 48.
h6 {[%clk 0:00:54.8]} 1-0

[Event "*** Titled Tuesday Blitz"]
[Site "Chess.com"]
[Date "2021.02.09"]
[Round "6"]
[White "Elshan1985"]
[Black "chessdjw"]
[Result "0-1"]
[WhiteElo "2799"]
[BlackElo "2643"]
[TimeControl "180+1"]
[EndTime "11:07:30 PST"]
[Termination "chessdjw won by resignation"]

1. e4 {[%clk 0:03:00.9]} 1... c5 {[%clk 0:02:59.7]} 2. Nf3 {[%clk 0:03:00.5]}
2... d6 {[%clk 0:03:00.1]} 3. d4 {[%clk 0:03:00]} 3... cxd4 {[%clk 0:03:01]} 4.
Nxd4 {[%clk 0:03:00.1]} 4... Nf6 {[%clk 0:03:01.6]} 5. Nc3 {[%clk 0:03:00.4]}
5... a6 {[%clk 0:03:02.2]} 6. Bc4 {[%clk 0:03:00.1]} 6... e6 {[%clk 0:03:02.3]}
7. a3 {[%clk 0:02:58.7]} 7... Be7 {[%clk 0:02:55.4]} 8. O-O {[%clk 0:02:58.5]}
8... O-O {[%clk 0:02:54.5]} 9. Ba2 {[%clk 0:02:53.8]} 9... b5 {[%clk 0:02:53.3]}
10. f4 {[%clk 0:02:54]} 10... Bb7 {[%clk 0:02:52.6]} 11. Qf3 {[%clk 0:02:49.3]}
11... Nbd7 {[%clk 0:02:42.6]} 12. b4 {[%clk 0:02:41.2]} 12... Rc8 {[%clk
0:02:39.4]} 13. Bb2 {[%clk 0:02:38.1]} 13... Qb6 {[%clk 0:02:37.5]} 14. Qd3
{[%clk 0:02:10.8]} 14... e5 {[%clk 0:02:28.7]} 15. Nd5 {[%clk 0:02:05.7]} 15...
Bxd5 {[%clk 0:02:02]} 16. exd5 {[%clk 0:02:05]} 16... exd4 {[%clk 0:02:00]} 17.
Bxd4 {[%clk 0:02:05]} 17... Qc7 {[%clk 0:02:00.2]} 18. c3 {[%clk 0:02:05.2]}
18... Rfe8 {[%clk 0:01:59.2]} 19. Rae1 {[%clk 0:02:05.2]} 19... Bf8 {[%clk
0:01:50.7]} 20. Qh3 {[%clk 0:01:43.8]} 20... Rxe1 {[%clk 0:01:18.1]} 21. Rxe1
{[%clk 0:01:44.7]} 21... Re8 {[%clk 0:01:18]} 22. Rd1 {[%clk 0:01:45.3]} 22...
g6 {[%clk 0:01:13.1]} 23. f5 {[%clk 0:01:38.4]} 23... Bg7 {[%clk 0:01:11.8]} 24.
fxg6 {[%clk 0:01:38.7]} 24... hxg6 {[%clk 0:01:09.9]} 25. Rf1 {[%clk 0:01:24.7]}
25... Ne4 {[%clk 0:01:07.4]} 26. Bxg7 {[%clk 0:00:52.3]} 26... Kxg7 {[%clk
0:01:08.3]} 27. c4 {[%clk 0:00:47.2]} 27... bxc4 {[%clk 0:00:52]} 28. Qf3 {[%clk
0:00:39.8]} 28... f5 {[%clk 0:00:47.1]} 29. Bb1 {[%clk 0:00:37.3]} 29... Ndf6
{[%clk 0:00:45.2]} 30. Bxe4 {[%clk 0:00:36.4]} 30... Nxe4 {[%clk 0:00:44.8]} 31.
Qe3 {[%clk 0:00:37.1]} 31... c3 {[%clk 0:00:42.7]} 32. Qd4+ {[%clk 0:00:37.5]}
32... Re5 {[%clk 0:00:42.8]} 33. Rc1 {[%clk 0:00:35]} 33... Kf7 {[%clk
0:00:41.5]} 34. g4 {[%clk 0:00:35.2]} 34... Qe7 {[%clk 0:00:37.8]} 35. gxf5
{[%clk 0:00:33.4]} 35... Qg5+ {[%clk 0:00:37.7]} 36. Kh1 {[%clk 0:00:32.9]}
36... Qxc1+ {[%clk 0:00:37.7]} 0-1

[Event "*** Titled Tuesday Blitz"]
[Site "Chess.com"]
[Date "2021.02.09"]
[Round "6"]
[White "12teen"]
[Black "hansen"]
[Result "1-0"]
[WhiteElo "2864"]
[BlackElo "2947"]
[TimeControl "180+1"]
[EndTime "11:07:33 PST"]
[Termination "12teen won by checkmate"]

1. b3 {[%clk 0:03:00.9]} 1... e5 {[%clk 0:02:35.2]} 2. Bb2 {[%clk 0:03:01.8]}
2... Nc6 {[%clk 0:02:27.4]} 3. e3 {[%clk 0:03:02.3]} 3... Nf6 {[%clk 0:02:27.5]}
4. Nf3 {[%clk 0:03:02.7]} 4... e4 {[%clk 0:02:26.4]} 5. Ng5 {[%clk 0:03:02.5]}
5... h6 {[%clk 0:02:20.7]} 6. Nh3 {[%clk 0:03:02.7]} 6... d5 {[%clk 0:02:18.7]}
7. Nf4 {[%clk 0:03:03]} 7... Be6 {[%clk 0:01:55.1]} 8. d3 {[%clk 0:02:55]} 8...
Bb4+ {[%clk 0:01:53.5]} 9. Nd2 {[%clk 0:02:54.1]} 9... exd3 {[%clk 0:01:35.1]}
10. Bxd3 {[%clk 0:02:53.4]} 10... Qd6 {[%clk 0:01:28.5]} 11. a3 {[%clk
0:02:46.9]} 11... Bc5 {[%clk 0:01:28.5]} 12. Nxe6 {[%clk 0:02:27.1]} 12... fxe6
{[%clk 0:01:21.9]} 13. b4 {[%clk 0:02:26.9]} 13... Bb6 {[%clk 0:01:16.2]} 14. c4
{[%clk 0:02:27.5]} 14... dxc4 {[%clk 0:01:05.2]} 15. Nxc4 {[%clk 0:02:28.4]}
15... Qd5 {[%clk 0:01:02.3]} 16. Bg6+ {[%clk 0:02:20.1]} 16... Ke7 {[%clk
0:01:01.4]} 17. Qc2 {[%clk 0:02:07.3]} 17... Rhd8 {[%clk 0:00:51]} 18. O-O
{[%clk 0:02:04.3]} 18... a5 {[%clk 0:00:45.6]} 19. bxa5 {[%clk 0:01:20.8]} 19...
Nxa5 {[%clk 0:00:35.2]} 20. Nxb6 {[%clk 0:01:21]} 20... cxb6 {[%clk 0:00:35.6]}
21. Qc7+ {[%clk 0:01:12.3]} 21... Nd7 {[%clk 0:00:28.3]} 22. Rfd1 {[%clk
0:01:10]} 22... Qc5 {[%clk 0:00:21]} 23. Qf4 {[%clk 0:01:09.3]} 23... Rf8 {[%clk
0:00:21]} 24. Qe4 {[%clk 0:00:53.1]} 24... Nf6 {[%clk 0:00:16.1]} 25. Bxf6+
{[%clk 0:00:48]} 25... Rxf6 {[%clk 0:00:16]} 26. Rac1 {[%clk 0:00:48.9]} 26...
Qg5 {[%clk 0:00:13.8]} 27. Rc7+ {[%clk 0:00:46.7]} 27... Kf8 {[%clk 0:00:13.9]}
28. Bh7 {[%clk 0:00:41.5]} 28... Qh5 {[%clk 0:00:06.8]} 29. Qb4+ {[%clk
0:00:41.3]} 29... Ke8 {[%clk 0:00:04.2]} 30. Qe7# {[%clk 0:00:41.4]} 1-0

[Event "*** Titled Tuesday Blitz"]
[Site "Chess.com"]
[Date "2021.02.09"]
[Round "6"]
[White "Tactictic"]
[Black "GelmanAlexander"]
[Result "0-1"]
[WhiteElo "2421"]
[BlackElo "2603"]
[TimeControl "180+1"]
[EndTime "11:07:33 PST"]
[Termination "GelmanAlexander won by checkmate"]

1. e4 {[%clk 0:02:47.4]} 1... c5 {[%clk 0:02:59.8]} 2. Nf3 {[%clk 0:02:45.4]}
2... e6 {[%clk 0:03:00.4]} 3. d4 {[%clk 0:02:45.1]} 3... cxd4 {[%clk 0:03:00.6]}
4. Nxd4 {[%clk 0:02:46]} 4... a6 {[%clk 0:03:01.2]} 5. Bd3 {[%clk 0:02:45.8]}
5... d6 {[%clk 0:03:01.4]} 6. c4 {[%clk 0:02:24.4]} 6... Nf6 {[%clk 0:03:01.1]}
7. O-O {[%clk 0:02:12.5]} 7... b6 {[%clk 0:02:55.3]} 8. Nc3 {[%clk 0:02:10.7]}
8... Bb7 {[%clk 0:02:55.5]} 9. f4 {[%clk 0:02:09]} 9... Nbd7 {[%clk 0:02:55.5]}
10. b3 {[%clk 0:01:50.5]} 10... g6 {[%clk 0:02:51.4]} 11. Bb2 {[%clk 0:01:42.6]}
11... Bg7 {[%clk 0:02:50.6]} 12. Qd2 {[%clk 0:01:35.1]} 12... O-O {[%clk
0:02:49.9]} 13. Rad1 {[%clk 0:01:31.6]} 13... Qc7 {[%clk 0:02:49.2]} 14. Nf3
{[%clk 0:01:13.3]} 14... Rad8 {[%clk 0:02:47.9]} 15. Kh1 {[%clk 0:01:03.3]}
15... Nc5 {[%clk 0:02:41]} 16. Qe3 {[%clk 0:00:51]} 16... Nxd3 {[%clk
0:02:39.8]} 17. Qxd3 {[%clk 0:00:42.6]} 17... Nh5 {[%clk 0:02:33.1]} 18. Nd4
{[%clk 0:00:29]} 18... Rfe8 {[%clk 0:02:06.3]} 19. Nce2 {[%clk 0:00:21.9]} 19...
e5 {[%clk 0:01:50.4]} 20. Nc2 {[%clk 0:00:13.2]} 20... exf4 {[%clk 0:01:46]} 21.
Bxg7 {[%clk 0:00:12.6]} 21... Bxe4 {[%clk 0:01:34.5]} 22. Qc3 {[%clk 0:00:10.6]}
22... Nxg7 {[%clk 0:01:31.4]} 23. Nxf4 {[%clk 0:00:08.4]} 23... d5 {[%clk
0:01:16.3]} 24. Nb4 {[%clk 0:00:02]} 24... dxc4 {[%clk 0:01:04.3]} 25. bxc4
{[%clk 0:00:02.9]} 25... Rxd1 {[%clk 0:01:01.5]} 26. Rxd1 {[%clk 0:00:02.1]}
26... Qxf4 {[%clk 0:01:02.1]} 27. Qd4 {[%clk 0:00:01.4]} 27... Bxg2+ {[%clk
0:00:52.5]} 28. Kxg2 {[%clk 0:00:02.3]} 28... Re2+ {[%clk 0:00:52.6]} 29. Kg1
{[%clk 0:00:01.6]} 29... Qg5+ {[%clk 0:00:52.3]} 30. Kf1 {[%clk 0:00:01.9]}
30... Qg2# {[%clk 0:00:52.4]} 0-1

[Event "*** Titled Tuesday Blitz"]
[Site "Chess.com"]
[Date "2021.02.09"]
[Round "6"]
[White "Forantes"]
[Black "lelajavakhishvili"]
[Result "1-0"]
[WhiteElo "2389"]
[BlackElo "2480"]
[TimeControl "180+1"]
[EndTime "11:07:33 PST"]
[Termination "Forantes won by resignation"]

1. e4 {[%clk 0:03:00.9]} 1... c5 {[%clk 0:02:59]} 2. Nf3 {[%clk 0:02:59.1]} 2...
e6 {[%clk 0:02:59.5]} 3. c3 {[%clk 0:02:57.5]} 3... Nf6 {[%clk 0:02:58.1]} 4. e5
{[%clk 0:02:57.6]} 4... Nd5 {[%clk 0:02:58.6]} 5. Bc4 {[%clk 0:02:57.8]} 5...
Nc6 {[%clk 0:02:57.4]} 6. O-O {[%clk 0:02:57]} 6... d6 {[%clk 0:02:57.3]} 7.
exd6 {[%clk 0:02:51.7]} 7... Nb6 {[%clk 0:02:56.6]} 8. Bb5 {[%clk 0:02:51.2]}
8... Bxd6 {[%clk 0:02:54.8]} 9. d4 {[%clk 0:02:51.4]} 9... O-O {[%clk
0:02:53.6]} 10. dxc5 {[%clk 0:02:45.3]} 10... Bxc5 {[%clk 0:02:54.5]} 11. Bg5
{[%clk 0:02:45.5]} 11... Be7 {[%clk 0:02:52.2]} 12. Bxe7 {[%clk 0:02:35.9]}
12... Qxe7 {[%clk 0:02:51.5]} 13. Nbd2 {[%clk 0:02:33.4]} 13... Bd7 {[%clk
0:02:51.4]} 14. Ne4 {[%clk 0:02:29.1]} 14... Rfd8 {[%clk 0:02:51.2]} 15. Qd6
{[%clk 0:02:10.8]} 15... a6 {[%clk 0:02:23]} 16. Qxe7 {[%clk 0:01:53.6]} 16...
Nxe7 {[%clk 0:02:21.6]} 17. Bxd7 {[%clk 0:01:53.2]} 17... Rxd7 {[%clk
0:02:21.3]} 18. Rfd1 {[%clk 0:01:52]} 18... Rad8 {[%clk 0:02:17.8]} 19. Rxd7
{[%clk 0:01:51.9]} 19... Rxd7 {[%clk 0:02:18]} 20. Kf1 {[%clk 0:01:49.2]} 20...
Rc7 {[%clk 0:01:49.9]} 21. Rd1 {[%clk 0:01:42.7]} 21... Nd7 {[%clk 0:01:48.8]}
22. Ne5 {[%clk 0:00:48.7]} 22... Nf8 {[%clk 0:01:48.7]} 23. Rd8 {[%clk
0:00:37.9]} 23... f6 {[%clk 0:01:48.7]} 24. Nd3 {[%clk 0:00:28.4]} 24... Nc6
{[%clk 0:01:26.3]} 25. Ra8 {[%clk 0:00:27]} 25... Kf7 {[%clk 0:01:20.8]} 26. Ke2
{[%clk 0:00:18.6]} 26... Ke7 {[%clk 0:01:17.9]} 27. Kd2 {[%clk 0:00:16.4]} 27...
Nd7 {[%clk 0:01:16.3]} 28. Rg8 {[%clk 0:00:14.9]} 28... Kf7 {[%clk 0:01:15.2]}
29. Rh8 {[%clk 0:00:14.7]} 29... h6 {[%clk 0:01:13.9]} 30. Nd6+ {[%clk 0:00:15]}
30... Kg6 {[%clk 0:00:59.7]} 31. Nf4+ {[%clk 0:00:08.6]} 31... Kg5 {[%clk
0:00:54.8]} 32. Nxe6+ {[%clk 0:00:09.2]} 32... Kg4 {[%clk 0:00:54.9]} 33. Nxc7
{[%clk 0:00:09.4]} 1-0

[Event "*** Titled Tuesday Blitz"]
[Site "Chess.com"]
[Date "2021.02.09"]
[Round "6"]
[White "PlotnikovPavel"]
[Black "Smile2005"]
[Result "0-1"]
[WhiteElo "2532"]
[BlackElo "2344"]
[TimeControl "180+1"]
[EndTime "11:07:36 PST"]
[Termination "Smile2005 won by resignation"]

1. e4 {[%clk 0:03:00.9]} 1... d5 {[%clk 0:02:59.4]} 2. exd5 {[%clk 0:03:00.3]}
2... Nf6 {[%clk 0:03:00]} 3. d4 {[%clk 0:02:59.9]} 3... Nxd5 {[%clk 0:03:00]} 4.
c4 {[%clk 0:02:59.2]} 4... Nb6 {[%clk 0:03:00.3]} 5. Nf3 {[%clk 0:02:59.1]} 5...
Bg4 {[%clk 0:02:58.1]} 6. Be2 {[%clk 0:02:57.4]} 6... e6 {[%clk 0:02:57.9]} 7.
c5 {[%clk 0:02:56.4]} 7... N6d7 {[%clk 0:02:57.2]} 8. Qb3 {[%clk 0:02:54.7]}
8... Nc6 {[%clk 0:02:57.1]} 9. Be3 {[%clk 0:02:53]} 9... Rb8 {[%clk 0:02:54.5]}
10. O-O {[%clk 0:02:50.9]} 10... Be7 {[%clk 0:02:54.1]} 11. Nc3 {[%clk
0:02:49.7]} 11... O-O {[%clk 0:02:54.1]} 12. h3 {[%clk 0:02:48.5]} 12... Bf5
{[%clk 0:02:53.7]} 13. Rfd1 {[%clk 0:02:46.4]} 13... Nf6 {[%clk 0:02:53.7]} 14.
d5 {[%clk 0:02:43.4]} 14... exd5 {[%clk 0:01:43.6]} 15. Nxd5 {[%clk 0:02:41.4]}
15... Nxd5 {[%clk 0:01:40.8]} 16. Rxd5 {[%clk 0:02:40.6]} 16... Qc8 {[%clk
0:01:40.9]} 17. Nd4 {[%clk 0:02:27]} 17... Be4 {[%clk 0:01:35.4]} 18. Rh5 {[%clk
0:02:16.6]} 18... g6 {[%clk 0:01:34.9]} 19. Rh6 {[%clk 0:02:08.1]} 19... Nxd4
{[%clk 0:01:28.8]} 20. Bxd4 {[%clk 0:02:09]} 20... Bg5 {[%clk 0:01:25]} 21. Be3
{[%clk 0:02:08.5]} 21... Qf5 {[%clk 0:01:21.6]} 22. Bg4 {[%clk 0:02:05.2]} 22...
Qe5 {[%clk 0:01:19.4]} 23. Bxg5 {[%clk 0:02:02.4]} 23... Qxg5 {[%clk 0:01:19.1]}
24. Qe3 {[%clk 0:02:02.6]} 24... Qxe3 {[%clk 0:01:03.3]} 25. fxe3 {[%clk
0:02:02]} 25... Kg7 {[%clk 0:01:03.9]} 26. Rh4 {[%clk 0:01:59.9]} 26... g5
{[%clk 0:01:04.1]} 27. Rh5 {[%clk 0:01:59.4]} 27... h6 {[%clk 0:01:04.6]} 28. h4
{[%clk 0:01:57.8]} 28... f6 {[%clk 0:01:03.7]} 29. hxg5 {[%clk 0:01:57]} 29...
hxg5 {[%clk 0:01:03.7]} 30. Rh1 {[%clk 0:01:49.6]} 30... Rbd8 {[%clk 0:01:03.2]}
31. Rd1 {[%clk 0:01:48.9]} 31... Rxd1+ {[%clk 0:01:01.6]} 32. Bxd1 {[%clk
0:01:47.1]} 32... Rd8 {[%clk 0:01:02.3]} 33. Bb3 {[%clk 0:01:43]} 33... Rd2
{[%clk 0:01:00.8]} 34. Rh2 {[%clk 0:01:41.7]} 34... Rxb2 {[%clk 0:00:59.5]} 35.
g3 {[%clk 0:01:41.9]} 35... Rxh2 {[%clk 0:00:46.7]} 36. Kxh2 {[%clk 0:01:42.8]}
36... f5 {[%clk 0:00:47.3]} 37. Kg1 {[%clk 0:01:39.6]} 37... Kf6 {[%clk
0:00:47.8]} 38. Kf2 {[%clk 0:01:39.9]} 38... Ke5 {[%clk 0:00:48.4]} 39. Ke1
{[%clk 0:01:40.2]} 39... Bd5 {[%clk 0:00:48.5]} 40. Kd2 {[%clk 0:01:39.5]} 40...
Bxb3 {[%clk 0:00:48.2]} 41. axb3 {[%clk 0:01:39.2]} 41... Ke4 {[%clk 0:00:48.8]}
42. b4 {[%clk 0:01:38.5]} 42... a6 {[%clk 0:00:46.7]} 43. Kc3 {[%clk 0:01:37]}
43... Kxe3 {[%clk 0:00:46.5]} 44. Kc4 {[%clk 0:01:35.6]} 44... Ke4 {[%clk
0:00:46.8]} 0-1

[Event "*** Titled Tuesday Blitz"]
[Site "Chess.com"]
[Date "2021.02.09"]
[Round "6"]
[White "SharapovEvgeny"]
[Black "ybruned"]
[Result "1-0"]
[WhiteElo "2460"]
[BlackElo "2288"]
[TimeControl "180+1"]
[EndTime "11:07:36 PST"]
[Termination "SharapovEvgeny won on time"]

1. c4 {[%clk 0:02:59.5]} 1... Nf6 {[%clk 0:02:59.1]} 2. Nc3 {[%clk 0:02:59]}
2... e6 {[%clk 0:02:59.7]} 3. e4 {[%clk 0:02:57.9]} 3... d5 {[%clk 0:03:00.3]}
4. e5 {[%clk 0:02:57.1]} 4... d4 {[%clk 0:03:00.9]} 5. exf6 {[%clk 0:02:56.5]}
5... dxc3 {[%clk 0:03:00.7]} 6. fxg7 {[%clk 0:02:54.2]} 6... cxd2+ {[%clk
0:02:59.2]} 7. Qxd2 {[%clk 0:02:54.5]} 7... Qxd2+ {[%clk 0:02:58.5]} 8. Bxd2
{[%clk 0:02:54.8]} 8... Bxg7 {[%clk 0:02:59.1]} 9. O-O-O {[%clk 0:02:55]} 9...
O-O {[%clk 0:02:42.4]} 10. Ne2 {[%clk 0:02:54.4]} 10... Nc6 {[%clk 0:02:39.3]}
11. Bc3 {[%clk 0:02:54.1]} 11... e5 {[%clk 0:02:33.1]} 12. f4 {[%clk 0:02:52.5]}
12... f6 {[%clk 0:01:59.4]} 13. Ng3 {[%clk 0:02:32.8]} 13... Bg4 {[%clk
0:01:53.5]} 14. Be2 {[%clk 0:02:31.5]} 14... Bxe2 {[%clk 0:01:48.8]} 15. Nxe2
{[%clk 0:02:31.1]} 15... Rad8 {[%clk 0:01:49.4]} 16. f5 {[%clk 0:02:27.4]} 16...
Bh6+ {[%clk 0:01:39.2]} 17. Kc2 {[%clk 0:02:26.6]} 17... Be3 {[%clk 0:01:36.7]}
18. g4 {[%clk 0:02:19.2]} 18... Kf7 {[%clk 0:01:31.9]} 19. Rd3 {[%clk
0:02:13.4]} 19... Rxd3 {[%clk 0:01:23]} 20. Kxd3 {[%clk 0:02:13]} 20... Bb6
{[%clk 0:01:16.3]} 21. Rd1 {[%clk 0:02:04]} 21... Rd8+ {[%clk 0:01:09]} 22. Kc2
{[%clk 0:02:03.7]} 22... Rxd1 {[%clk 0:00:47.8]} 23. Kxd1 {[%clk 0:02:02.7]}
23... Ba5 {[%clk 0:00:48.4]} 24. Bxa5 {[%clk 0:01:50.4]} 24... Nxa5 {[%clk
0:00:47.8]} 25. b3 {[%clk 0:01:50.7]} 25... c5 {[%clk 0:00:45.5]} 26. Kd2 {[%clk
0:01:47.1]} 26... Nc6 {[%clk 0:00:46]} 27. Kd3 {[%clk 0:01:45.4]} 27... Nb4+
{[%clk 0:00:40]} 28. Ke4 {[%clk 0:01:40.6]} 28... Nxa2 {[%clk 0:00:39.4]} 29.
Kd5 {[%clk 0:01:39.7]} 29... b6 {[%clk 0:00:39.9]} 30. Kc6 {[%clk 0:01:39.5]}
30... Nb4+ {[%clk 0:00:19.8]} 31. Kb7 {[%clk 0:01:39]} 31... e4 {[%clk 0:00:12]}
32. Kxa7 {[%clk 0:01:38]} 32... Nc6+ {[%clk 0:00:12.5]} 33. Kxb6 {[%clk
0:01:36.7]} 33... Nd4 {[%clk 0:00:13.1]} 34. Nc3 {[%clk 0:01:30.3]} 34... e3
{[%clk 0:00:10.2]} 35. Kxc5 {[%clk 0:01:29.8]} 35... Nxb3+ {[%clk 0:00:10.1]}
36. Kd6 {[%clk 0:01:25.8]} 36... Nc1 {[%clk 0:00:05.1]} 37. c5 {[%clk
0:01:24.1]} 37... e2 {[%clk 0:00:05.4]} 38. Nxe2 {[%clk 0:01:23.4]} 38... Nxe2
{[%clk 0:00:05.9]} 39. c6 {[%clk 0:01:23.5]} 39... Nd4 {[%clk 0:00:02.5]} 40. c7
{[%clk 0:01:22.7]} 40... Nb5+ {[%clk 0:00:02.3]} 41. Kd7 {[%clk 0:01:23]} 41...
Nxc7 {[%clk 0:00:02]} 42. Kxc7 {[%clk 0:01:23.2]} 1-0